bitfinex/quotes_ETHUSD_20220213
["timestamp","ask_amount","ask_price","bid_price","bid_amount"]
[1644723807019,0.05946132,2929.8,2929.7,3.8492143]
[1644723807223,0.05946132,2929.8,2929.7,4.8492143]
[1644723807818,0.05946132,2929.8,2929.7,5.3382143]
[1644723808421,0.05946132,2929.8,2929.7,2.09056978]
[1644723808826,0.05946132,2929.8,2929.7,1.09056978]
[1644723809364,0.05946132,2929.8,2929.7,5.03925827]
[1644723809565,0.05946132,2929.8,2929.7,1.94449586]
[1644723809773,0.05946132,2929.8,2929.7,2.94449586]
[1644723809968,0.05946132,2929.8,2929.7,1.09139586]
[1644723810168,0.05946132,2929.8,2929.7,2.09139586]
[1644723810371,0.04035806,2929.8,2929.7,1.09139586]
[1644723810571,0.94450665,2930.0,2929.8,4.1]
[1644723810773,0.18142987,2930.5,2930.0,4.1]
[1644723810970,0.1776,2930.5,2930.1,0.489]
[1644723811171,0.1776,2930.5,2930.1,1.489]
[1644723811172,0.007,2930.5,2930.1,1.489]
[1644723811371,0.53825592,2930.7,2930.1,1.489]
[1644723811372,0.48825592,2930.7,2930.2,7.6]
[1644723811575,0.48825592,2930.7,2930.3,0.489]
[1644723811771,0.48825592,2930.7,2930.3,0.3]
[1644723811975,0.48825592,2930.7,2930.3,0.789]
[1644723812176,0.48825592,2930.7,2930.0,0.489]
[1644723812177,1.54863273,2930.1,2930.0,0.489]
[1644723812380,1.54863273,2930.1,2929.7,3.50239586]
[1644723812777,1.54863273,2930.1,2929.7,0.00239586]
[1644723814019,1.54863273,2930.1,2929.7,1.00239586]
[1644723814222,1.54863273,2930.1,2930.0,0.00082311]
[1644723815722,1.54863273,2930.1,2930.0,0.6619144]
[1644723815922,0.007,2930.7,2930.1,4.1]
[1644723816121,0.007,2930.7,2930.2,4.56889535]
[1644723816321,0.007,2930.7,2930.3,0.3]
[1644723816724,0.007,2930.7,2930.4,0.489]
[1644723816969,0.007,2930.7,2930.4,0.789]
[1644723817372,0.01718722,2930.7,2930.4,0.789]
[1644723817577,0.01718722,2930.7,2930.4,0.489]
[1644723817777,0.01718722,2930.7,2930.0,0.00082311]
[1644723817977,1.62239064,2930.6,2930.0,0.00082311]
[1644723818174,4.4879,2930.6,2930.0,0.00082311]
[1644723818474,0.00384819,2930.5,2930.0,0.00082311]
[1644723818674,0.01403571,2930.5,2930.0,0.00082311]
[1644723819372,0.00384819,2930.5,2930.0,0.00082311]
[1644723819774,0.00999819,2930.4,2930.0,0.00082311]
[1644723820730,0.00384819,2930.5,2930.0,0.00082311]
[1644723820929,0.00999826,2930.3,2930.0,0.00082311]
[1644723821930,0.00384819,2930.5,2930.0,0.00082311]
[1644723822130,0.00999834,2930.3,2930.0,0.00082311]
[1644723823131,0.00385214,2930.5,2930.0,0.00082311]
[1644723823331,0.01018781,2930.3,2930.0,0.00082311]
[1644723824371,0.00385214,2930.5,2930.0,0.00082311]
[1644723824570,0.01018781,2930.3,2930.0,0.00082311]
[1644723825574,0.00385214,2930.5,2930.1,0.0423855]
[1644723825775,0.01018781,2930.3,2930.1,0.0423855]
[1644723826378,1.45194428,2930.2,2930.1,0.0423855]
[1644723827376,1.45194428,2930.2,2930.0,0.00082311]
[1644723827581,1.45194428,2930.2,2929.7,0.01018994]
[1644723827582,6.62254428,2930.2,2929.7,0.01018994]
[1644723827884,1.94479642,2930.1,2929.3,0.25]
[1644723828125,1.62254428,2930.0,2928.5,0.1706]
[1644723828323,1.45579642,2929.9,2929.7,0.01018954]
[1644723828524,1.18977568,2929.8,2929.7,0.01018954]
[1644723828723,3.77251996,2929.8,2929.7,0.01018954]
[1644723829124,3.77251996,2929.8,2928.8,0.25]
[1644723829324,1.45579642,2929.7,2929.6,0.01018941]
[1644723829524,1.13465214,2929.8,2929.6,0.01018941]
[1644723829926,1.1308,2929.8,2929.6,0.01018941]
[1644723830124,1.3014,2929.8,2929.6,0.01018941]
[1644723830323,1.3014,2929.8,2929.0,0.3]
[1644723830527,1.3014,2929.8,2928.8,1.0]
[1644723830528,0.00385214,2929.7,2929.6,0.00999843]
[1644723830727,1.1308,2929.8,2929.6,0.00999843]
[1644723830924,1.13465214,2929.8,2929.6,0.00999843]
[1644723831124,1.1308,2929.8,2929.6,0.00999843]
[1644723831523,1.1308,2929.8,2929.4,0.1706]
[1644723831869,0.00385214,2929.8,2929.6,0.00999843]
[1644723832069,3.791,2929.9,2929.6,0.00999843]
[1644723832671,3.791,2929.9,2929.4,0.1706]
[1644723833473,3.791,2929.9,2929.4,0.4706]
[1644723833675,0.95262116,2930.0,2929.4,0.4706]
[1644723833876,0.94673473,2930.0,2929.4,0.4706]
[1644723834276,0.00100726,2929.7,2929.5,0.00960851]
[1644723834877,0.00100726,2929.7,2929.5,0.30960851]
[1644723835077,0.00100726,2929.7,2929.5,0.3]
[1644723835279,0.00100726,2929.7,2929.5,0.6]
[1644723835478,0.01602813,2929.7,2929.6,0.00105187]
[1644723836423,0.01602813,2929.7,2929.6,0.49005187]
[1644723836623,0.02012975,2929.8,2929.6,0.49005187]
[1644723836624,0.01627761,2929.8,2929.7,4.1]
[1644723836826,0.01627761,2929.8,2929.7,0.489]
[1644723837025,0.01627761,2929.8,2929.7,1.489]
[1644723837425,0.01627761,2929.8,2929.7,0.489]
[1644723839667,0.01627761,2929.8,2929.7,1.489]
[1644723840068,0.03239591,2929.8,2929.7,1.489]
[1644723840267,0.03239591,2929.8,2929.7,0.489]
[1644723841770,0.03239591,2929.8,2929.6,0.6106848]
[1644723842172,0.03239591,2929.8,2929.6,1.4638248]
[1644723842372,0.03239591,2929.8,2929.6,1.15419187]
[1644723842572,0.03239591,2929.8,2929.6,1.16382487]
[1644723842772,0.03239591,2929.8,2929.6,2.16382487]
[1644723843620,0.03239591,2929.8,2929.6,2.15419187]
[1644723843821,0.03239591,2929.8,2929.6,2.16382487]
[1644723844822,0.03239591,2929.8,2929.6,2.15419187]
[1644723845023,0.04639591,2929.8,2929.6,2.16382499]
[1644723846028,0.04639591,2929.8,2929.6,2.15419187]
[1644723846224,0.04639591,2929.8,2929.6,2.16382499]
[1644723846425,0.0096315,2930.0,2929.8,4.1]
[1644723846628,0.0096315,2930.0,2929.9,5.21109878]
[1644723846867,0.0096315,2930.0,2929.9,6.47219007]
[1644723847273,0.007,2930.7,2929.9,6.60019007]
[1644723847474,0.00963183,2930.1,2929.9,6.47219007]
[1644723847675,0.00963183,2930.1,2930.0,3.27289276]
[1644723847873,0.00963183,2930.1,2930.0,4.76189276]
[1644723848476,0.007,2930.7,2930.0,4.76189276]
[1644723848780,0.00930851,2930.2,2930.1,1.17209129]
[1644723848975,0.00930851,2930.2,2930.1,4.8820938]
[1644723849175,0.00930851,2930.2,2930.1,4.4820938]
[1644723849375,0.00930851,2930.2,2930.1,5.4820938]
[1644723849575,0.007,2930.7,2930.3,0.85289]
[1644723849777,0.007,2930.7,2930.4,3.20797146]
[1644723849974,1.45164065,2930.6,2930.4,3.50797146]
[1644723850174,1.45164065,2930.6,2930.5,1.0]
[1644723850624,1.45164065,2930.6,2930.5,1.489]
[1644723850818,1.45164065,2930.6,2930.5,0.489]
[1644723853828,1.45164065,2930.6,2930.5,3.51330764]
[1644723854024,1.45164065,2930.6,2930.5,0.489]
[1644723854224,1.45164065,2930.6,2930.5,1.489]
[1644723854477,1.45164065,2930.6,2930.5,0.489]
[1644723854677,1.45164065,2930.6,2930.5,1.489]
[1644723854877,1.45164065,2930.6,2930.5,0.489]
[1644723855080,1.45164065,2930.6,2930.5,1.489]
[1644723855280,1.45164065,2930.6,2930.5,0.489]
[1644723855682,1.45164065,2930.6,2930.5,0.49005175]
[1644723856682,1.45164065,2930.6,2930.5,3.62154525]
[1644723856883,1.45164065,2930.6,2930.5,4.79363654]
[1644723857487,0.01663026,2930.7,2930.5,4.79363654]
[1644723857686,0.01663026,2930.7,2930.6,3.7259975]
[1644723857883,0.01663026,2930.7,2930.6,6.8919975]
[1644723858132,0.007,2930.7,2930.6,7.06408879]
[1644723858326,0.0166302,2930.7,2930.6,7.06408879]
[1644723858528,0.0166302,2930.7,2930.5,0.00105175]
[1644723858529,1.46822026,2930.7,2930.5,0.00105175]
[1644723858731,1.45159006,2930.6,2930.5,0.00105175]
[1644723859030,1.45159006,2930.6,2930.4,0.2981965]
[1644723860727,1.46122118,2930.6,2930.4,0.2981965]
[1644723861033,1.45159006,2930.5,2930.4,0.2981965]
[1644723861870,1.46122124,2930.6,2930.4,0.2981965]
[1644723862084,1.45159006,2930.5,2930.4,0.2981965]
[1644723864184,1.46122123,2930.6,2930.4,0.2981965]
[1644723864380,1.45159006,2930.5,2930.4,0.2981965]
[1644723865381,1.46122123,2930.6,2930.4,0.2981965]
[1644723865624,0.00963117,2930.6,2930.4,0.2981965]
[1644723866020,0.00963117,2930.6,2930.1,1.72837877]
[1644723866021,1.45168176,2930.5,2930.1,1.72837877]
[1644723866225,1.45168176,2930.5,2929.7,0.00963418]
[1644723866226,4.1,2930.3,2929.7,0.00963418]
[1644723866422,4.1,2930.3,2929.3,0.17820722]
[1644723866618,5.00385214,2930.4,2929.3,0.17820722]
[1644723866619,5.1261339,2930.2,2929.3,0.17820722]
[1644723866825,1.45168176,2930.1,2929.3,0.17820722]
[1644723867018,3.6706,2930.0,2929.2,0.25]
[1644723867228,1.45168176,2929.9,2929.2,0.25]
[1644723867422,0.1706,2929.8,2928.2,0.25]
[1644723867624,1.45168176,2929.7,2928.3,0.1706]
[1644723867827,0.1706,2929.6,2928.2,0.25]
[1644723868026,0.1706,2929.6,2928.4,0.1706]
[1644723868027,1.03640538,2929.4,2928.4,0.1706]
[1644723868225,1.03640538,2929.4,2928.5,0.489]
[1644723868423,1.03640538,2929.4,2928.6,1.02394]
[1644723868823,1.03640538,2929.4,2928.9,0.85333]
[1644723869124,1.03640538,2929.4,2928.9,1.45333]
[1644723869572,1.03640538,2929.4,2928.9,0.6]
[1644723869771,0.1706,2929.6,2928.9,0.3]
[1644723870172,0.1706,2929.6,2928.8,0.7706]
[1644723870371,0.1706,2929.6,2928.6,2.70667]
[1644723870372,0.1706,2929.8,2929.0,0.01018579]
[1644723870576,3.51018217,2930.0,2929.0,0.86346579]
[1644723870577,0.01018217,2930.0,2929.0,0.86346579]
[1644723870776,0.01018217,2930.0,2929.0,0.01018579]
[1644723870777,1.45189056,2929.9,2929.0,0.01018579]
[1644723870978,3.5,2929.8,2929.0,0.01018579]
[1644723871178,5.64963405,2929.6,2929.0,0.01018579]
[1644723871376,1.62249056,2929.5,2927.9,0.17827591]
[1644723871584,1.45189056,2929.4,2929.3,0.01018535]
[1644723871775,2.51273517,2929.4,2929.3,0.01018535]
[1644723872377,0.85925587,2928.8,2928.4,0.25]
[1644723872577,0.85925587,2928.8,2928.0,0.1706]
[1644723873824,0.85925587,2928.8,2928.0,3.5706]
[1644723874027,0.85925587,2928.8,2928.3,0.01018689]
[1644723874827,0.85925587,2928.8,2928.1,1.3]
[1644723875029,0.85925587,2928.8,2928.4,0.01018667]
[1644723876029,0.85925587,2928.8,2928.1,1.3]
[1644723876229,0.85925587,2928.8,2928.5,0.0101866]
[1644723877270,0.85925587,2928.8,2928.1,1.3]
[1644723877467,0.85925587,2928.8,2928.5,0.01018653]
[1644723878472,0.85925587,2928.8,2928.2,0.1706]
[1644723878772,0.85925587,2928.8,2928.5,0.01018653]
[1644723879673,0.85925587,2928.8,2928.1,1.3]
[1644723879879,0.85925587,2928.8,2928.5,0.01018653]
[1644723880273,0.01354992,2928.7,2928.5,0.01018653]
[1644723880716,0.01354992,2928.7,2928.1,1.3]
[1644723881124,0.01354992,2928.7,2928.5,0.0101866]
[1644723882021,0.01354992,2928.7,2928.4,3.99024822]
[1644723882220,0.01354992,2928.7,2928.4,4.29024822]
[1644723882425,5.126,2928.5,2926.6,5.05700899]
[1644723882628,5.126,2928.5,2926.3,3.41435]
[1644723882629,5.0,2926.9,2926.3,3.41435]
[1644723882827,5.0,2926.9,2925.4,3.10014579]
[1644723882828,5.0,2926.5,2924.8,1.0855]
[1644723883023,5.0,2925.7,2924.8,1.0855]
[1644723883227,5.0,2925.7,2924.8,0.8355]
[1644723883228,0.489,2925.6,2924.8,0.8355]
[1644723883427,0.95946504,2925.5,2924.8,0.8355]
[1644723883630,6.6858,2925.4,2924.8,0.8355]
[1644723883825,1.026,2925.2,2924.8,0.8355]
[1644723884027,1.026,2925.0,2924.8,0.8355]
[1644723884231,1.515,2924.9,2924.8,0.8355]
[1644723884676,1.6858,2924.9,2924.8,0.8355]
[1644723884874,1.515,2924.9,2924.8,0.8355]
[1644723885082,1.026,2924.9,2924.8,0.8355]
[1644723885374,1.026,2924.9,2924.8,4.2355]
[1644723885979,1.026,2924.9,2924.1,0.25]
[1644723885980,5.176,2924.8,2924.7,0.00989497]
[1644723886176,5.3468,2924.8,2924.7,0.00989497]
[1644723886379,1.026,2924.6,2924.3,0.03958582]
[1644723886575,1.1968,2924.6,2924.3,0.03958582]
[1644723886780,1.1968,2924.6,2923.4,0.25]
[1644723886976,1.026,2924.4,2923.6,0.95650573]
[1644723887776,1.026,2924.4,2924.1,0.95031631]
[1644723887981,1.71221369,2924.7,2924.1,0.95031631]
[1644723887982,1.026,2924.6,2924.1,0.95031631]
[1644723888230,1.026,2924.6,2923.6,0.3]
[1644723888430,1.026,2924.6,2923.8,0.85473]
[1644723888628,1.026,2924.6,2923.8,1.15473]
[1644723888930,1.026,2924.6,2923.8,1.45473]
[1644723889129,1.026,2924.6,2924.0,1.03796215]
[1644723889329,1.026,2924.6,2924.0,1.33796215]
[1644723890333,1.04804103,2924.6,2924.0,1.33796215]
[1644723890733,1.04804103,2924.6,2924.2,0.00426293]
[1644723891532,1.04804103,2924.6,2924.0,1.33796215]
[1644723891969,1.04804103,2924.6,2924.3,0.01020146]
[1644723892776,1.04804103,2924.6,2924.0,1.33796215]
[1644723893171,1.04804103,2924.6,2924.3,0.01020139]
[1644723893877,4.46240777,2924.6,2924.3,0.01020139]
[1644723894079,0.1708,2924.5,2923.4,0.25]
[1644723894478,0.1708,2924.5,2924.3,0.00429229]
[1644723894981,0.1708,2924.5,2924.3,9.229e-05]
[1644723895181,0.1708,2924.5,2923.4,0.25]
[1644723895182,7.1968,2924.5,2923.4,0.25]
[1644723895383,1.026,2923.8,2923.4,0.25]
[1644723895622,0.171,2923.7,2922.3,0.489]
[1644723895821,1.026,2923.8,2922.3,0.489]
[1644723896024,1.026,2923.8,2922.9,0.97493347]
[1644723896626,1.026,2923.8,2922.9,1.27493347]
[1644723897126,1.026,2923.8,2923.4,0.87419263]
[1644723897326,1.026,2923.8,2923.4,1.47419263]
[1644723898123,1.026,2923.8,2923.4,0.3]
[1644723898325,1.026,2923.8,2923.0,0.789]
[1644723898526,1.026,2923.8,2923.1,0.00316948]
[1644723899226,1.026,2923.8,2923.2,1.472531]
[1644723899471,1.026,2923.8,2923.3,0.00316948]
[1644723899670,1.026,2923.8,2923.1,0.00316948]
[1644723900379,1.026,2923.7,2923.2,0.89943411]
[1644723900584,1.026,2923.7,2923.3,0.00316948]
[1644723900778,1.026,2923.7,2923.2,1.49943411]
[1644723902978,1.026,2923.7,2923.2,1.98843411]
[1644723903245,1.026,2923.7,2923.4,1.45489]
[1644723903437,1.026,2923.7,2923.5,0.489]
[1644723903637,1.026,2923.7,2923.6,0.171]
[1644723903834,1.026,2923.7,2923.6,0.66]
[1644723904036,1.026,2923.7,2923.6,0.96]
[1644723904438,1.026,2923.7,2923.6,1.19349213]
[1644723904836,0.171,2924.3,2923.6,1.19349213]
[1644723904837,0.171,2924.3,2923.8,0.23349213]
[1644723905036,0.171,2924.3,2924.0,0.23349213]
[1644723905238,0.171,2924.3,2924.2,1.07741683]
[1644723905436,0.171,2924.3,2924.2,1.56641683]
[1644723905635,1.54141369,2924.7,2924.2,1.56641683]
[1644723906142,1.54141369,2924.7,2924.4,0.23349213]
[1644723906339,1.54141369,2924.7,2924.6,0.23349213]
[1644723906538,1.54141369,2924.7,2924.6,0.72249213]
[1644723907176,0.1708,2925.7,2925.6,0.23349213]
[1644723907374,0.1708,2926.1,2925.4,1.026]
[1644723907571,8.0399,2926.7,2925.7,1.026]
[1644723907572,0.1708,2926.5,2925.7,1.026]
[1644723907771,0.1708,2926.0,2925.9,1.026]
[1644723907974,0.1708,2926.4,2925.9,1.026]
[1644723908177,0.1708,2926.8,2925.9,1.026]
[1644723909278,3.27961498,2926.4,2925.9,1.026]
[1644723909477,0.1708,2926.3,2925.9,1.026]
[1644723911524,0.1708,2926.3,2926.1,1.026]
[1644723911725,3.27961498,2926.4,2926.2,0.489]
[1644723911926,3.27961498,2926.4,2926.3,1.026]
[1644723913536,4.15,2926.2,2925.0,0.4082]
[1644723913744,5.0,2925.4,2925.0,0.4082]
[1644723913936,5.0,2925.1,2924.2,0.01023773]
[1644723914132,5.941,2925.1,2924.2,0.01023773]
[1644723914390,0.09014733,2924.9,2924.2,0.01023773]
[1644723914577,3.27961498,2924.6,2924.2,0.01023773]
[1644723914977,3.27961498,2924.6,2923.9,0.25]
[1644723915182,3.27961498,2924.6,2924.2,0.01023405]
[1644723916079,3.27961498,2924.6,2923.4,0.25]
[1644723916284,3.27961498,2924.6,2924.2,0.01023374]
[1644723917182,3.27961498,2924.6,2923.7,1.88592982]
[1644723917380,3.27961498,2924.6,2923.7,1.63111982]
[1644723917580,3.27961498,2924.6,2924.2,0.00989161]
[1644723918228,3.27961498,2924.6,2924.2,1.12704818]
[1644723918426,3.27961498,2924.6,2924.2,1.11715657]
[1644723918831,3.27961498,2924.6,2924.2,1.12704818]
[1644723919226,3.27961498,2924.6,2924.2,4.52704818]
[1644723919428,1.63980749,2924.6,2924.2,4.52704818]
[1644723919727,1.63980749,2924.4,2924.2,4.51715657]
[1644723919928,3.27961498,2924.4,2924.2,4.52704818]
[1644723920329,3.27961498,2924.4,2924.2,3.40989161]
[1644723920928,3.27961498,2924.4,2924.2,3.4]
[1644723921129,3.27961498,2924.4,2924.2,3.41023354]
[1644723921337,3.31930894,2924.3,2924.2,3.41023354]
[1644723922172,3.27961498,2924.4,2924.2,3.4]
[1644723923574,3.27961498,2924.4,2924.2,3.41023354]
[1644723924575,3.27961498,2924.4,2924.2,3.4]
[1644723924779,1.63980749,2924.4,2924.2,3.41023354]
[1644723924977,0.18987553,2924.6,2924.2,3.41023354]
[1644723925180,3.27961498,2924.3,2924.2,3.41023354]
[1644723925377,3.29862561,2924.3,2924.2,3.41023354]
[1644723925628,3.29862561,2924.3,2924.2,3.4]
[1644723925828,0.489,2924.8,2924.3,4.15]
[1644723926028,0.1708,2925.2,2924.3,4.15]
[1644723926328,0.01022912,2925.4,2924.3,4.15]
[1644723926730,1.45412005,2925.3,2924.3,0.94113687]
[1644723927130,0.1708,2925.6,2924.3,0.94113687]
[1644723927131,1.45412005,2925.2,2924.3,0.94113687]
[1644723927335,0.01023035,2925.4,2924.4,0.8546]
[1644723927530,0.01023035,2925.4,2924.2,3.41023466]
[1644723927531,1.45419991,2925.3,2924.2,3.41023466]
[1644723927731,1.62499991,2925.3,2924.2,3.41023466]
[1644723927930,1.45419991,2925.2,2924.2,3.41023466]
[1644723928135,1.45419991,2925.2,2924.2,3.4]
[1644723928136,0.1708,2925.1,2924.2,3.4]
[1644723928335,1.45419991,2925.0,2924.2,3.40428465]
[1644723928537,1.45419991,2925.0,2924.3,1.00962854]
[1644723928838,1.45419991,2924.9,2924.3,1.00962854]
[1644723929038,0.1708,2925.3,2924.2,3.40428465]
[1644723929233,1.45430264,2925.2,2924.2,3.4]
[1644723929492,0.1708,2925.1,2924.2,3.40428465]
[1644723929694,1.45430264,2925.0,2924.3,0.00316857]
[1644723930092,1.45430264,2924.9,2924.3,0.98795304]
[1644723930294,0.1708,2925.3,2924.5,0.02334085]
[1644723930493,1.45422868,2925.2,2924.3,0.98795304]
[1644723931893,1.45422868,2925.1,2924.3,0.00316857]
[1644723932093,1.45422868,2925.0,2924.3,0.00316857]
[1644723932293,0.49926414,2925.4,2924.3,0.00316857]
[1644723932495,1.45428698,2925.3,2924.3,0.00316857]
[1644723933724,0.1708,2925.2,2924.3,0.00316857]
[1644723934124,1.45424673,2925.1,2924.3,0.00316857]
[1644723934330,0.1708,2925.3,2924.3,0.00316857]
[1644723934529,1.45424506,2925.2,2924.3,0.00316857]
[1644723935527,1.45424506,2925.2,2924.5,0.02334085]
[1644723936728,0.1708,2925.1,2924.5,0.02334085]
[1644723936986,0.01026434,2925.4,2924.5,0.02334085]
[1644723937377,0.01026434,2925.4,2924.5,0.02650942]
[1644723937779,0.1708,2925.5,2924.9,0.88931079]
[1644723937980,1.46444245,2925.4,2925.0,0.00316857]
[1644723938187,1.46444245,2925.4,2924.5,0.02650942]
[1644723938188,0.00950571,2924.8,2924.5,0.02650942]
[1644723938484,0.00950571,2924.8,2924.5,0.02334085]
[1644723938683,0.1708,2924.7,2924.5,0.02334085]
[1644723939490,0.00950571,2924.8,2924.5,0.02334085]
[1644723940287,0.00950571,2924.8,2924.3,1.07321306]
[1644723942037,0.00950571,2924.8,2924.3,0.00316857]
[1644723942937,0.00950571,2924.8,2924.6,1.06179893]
[1644723943140,0.00950571,2924.8,2924.3,0.00316857]
[1644723943742,0.00950571,2924.8,2924.4,0.489]
[1644723943944,0.00950571,2924.8,2924.4,2.19803]
[1644723944402,0.00950571,2924.8,2924.5,0.3]
[1644723944706,0.00950571,2924.8,2924.7,1.49414573]
[1644723944902,0.00950571,2924.8,2924.7,1.79414573]
[1644723945702,0.00950571,2924.8,2924.7,2.64865573]
[1644723946501,0.00950571,2924.8,2924.7,3.64865573]
[1644723947802,0.00866175,2924.8,2924.7,3.64865573]
[1644723948529,0.00866175,2924.8,2924.7,2.64865573]
[1644723948733,0.01026414,2925.4,2924.7,6.70001675]
[1644723949034,0.01026414,2925.4,2925.1,0.85427]
[1644723949232,0.01026414,2925.4,2925.2,0.489]
[1644723949631,0.01026414,2925.4,2925.2,8.989]
[1644723949839,3.7441,2926.8,2926.2,1.18595178]
[1644723950031,0.1708,2926.7,2926.2,1.18595178]
[1644723950235,0.1708,2927.0,2926.2,1.48595178]
[1644723950432,1.45353129,2926.9,2926.2,1.18595178]
[1644723950631,2.17306839,2927.4,2925.7,4.289]
[1644723950632,1.45353129,2926.8,2925.7,4.289]
[1644723950832,1.45353129,2926.7,2925.7,0.6]
[1644723951131,1.45353129,2926.7,2925.6,5.2708]
[1644723951132,0.00601501,2926.4,2925.6,5.2708]
[1644723951331,0.00601501,2926.4,2925.6,1.7708]
[1644723951742,0.00601501,2926.4,2926.0,1.1389233]
[1644723952177,0.1708,2927.2,2926.0,1.1389233]
[1644723952380,0.00601501,2926.3,2926.0,1.1389233]
[1644723952975,0.00601501,2926.3,2926.0,4.5389233]
[1644723953379,0.1708,2927.2,2926.0,4.5389233]
[1644723953579,0.01029126,2926.3,2926.0,4.5389233]
[1644723953780,0.01029126,2926.3,2926.1,1.09089256]
[1644723954480,0.1708,2927.2,2926.1,1.09089256]
[1644723954679,0.01029119,2926.3,2926.1,1.09089256]
[1644723955729,0.1708,2927.2,2926.1,1.09089256]
[1644723955929,0.01029119,2926.3,2926.1,1.09089256]
[1644723956331,0.0060483,2926.3,2926.1,1.09089256]
[1644723956736,0.0060483,2926.3,2926.1,1.39089256]
[1644723956934,0.1708,2927.2,2926.1,1.39089256]
[1644723957138,1.45357991,2927.1,2926.2,3.21544048]
[1644723957336,0.1708,2927.0,2926.1,1.39089256]
[1644723957543,1.45357991,2926.9,2926.1,1.39089256]
[1644723957935,1.62437991,2926.8,2926.1,1.39089256]
[1644723958137,0.1708,2927.1,2926.1,1.39089256]
[1644723958339,1.45359635,2927.0,2926.1,1.39089256]
[1644723958638,1.62439635,2926.9,2926.1,1.39089256]
[1644723958838,0.1708,2927.2,2926.1,1.39089256]
[1644723959040,0.1708,2927.2,2926.2,3.17751502]
[1644723959041,1.45351494,2927.1,2926.2,3.17751502]
[1644723959239,1.45351494,2927.1,2926.3,0.85406]
[1644723960283,1.45351494,2927.1,2926.3,1.45406]
[1644723960884,0.01029045,2926.8,2926.3,1.45406]
[1644723961084,0.01029045,2926.8,2926.4,3.18420429]
[1644723961385,0.01029045,2926.8,2926.5,0.91771436]
[1644723961584,0.01029045,2926.8,2926.6,3.15622102]
[1644723961785,10.4741,2927.6,2926.6,3.15622102]
[1644723961984,1.45326079,2927.5,2927.1,1.14070418]
[1644723962483,1.45326079,2927.5,2927.1,0.3]
[1644723962689,0.13819997,2927.7,2927.1,0.3]
[1644723962885,1.45319886,2927.6,2926.8,0.3]
[1644723963328,1.45319886,2927.6,2926.7,1.0]
[1644723963329,0.01028958,2927.4,2926.7,1.0]
[1644723963529,0.01028958,2927.4,2926.7,1.3]
[1644723963927,0.01028958,2927.4,2926.7,0.3]
[1644723964127,0.13819997,2927.7,2926.9,1.06013628]
[1644723964331,0.01028994,2927.2,2927.0,0.3]
[1644723965332,0.13819997,2927.7,2927.0,3.53306037]
[1644723965530,0.01028987,2927.2,2927.0,0.3]
[1644723965927,0.01028987,2927.2,2927.0,3.47449558]
[1644723966326,0.01028987,2927.2,2927.0,0.3]
[1644723966529,0.13819997,2927.7,2927.0,0.3]
[1644723966729,0.01028987,2927.2,2927.0,0.3]
[1644723967579,0.09848984,2927.7,2927.0,0.3]
[1644723967780,0.26928984,2927.7,2927.0,0.3]
[1644723967984,0.01028987,2927.2,2927.0,0.3]
[1644723968982,0.09848984,2927.7,2927.0,0.3]
[1644723969180,0.00600614,2927.3,2927.0,0.3]
[1644723969583,0.00600614,2927.3,2926.8,0.3]
[1644723969780,0.00600614,2927.3,2926.7,0.02354891]
[1644723969980,0.00600614,2927.3,2926.8,0.3]
[1644723970180,0.09848984,2927.7,2927.1,0.02332011]
[1644723970383,0.00994204,2927.3,2927.1,0.02332011]
[1644723971430,0.09848984,2927.7,2927.1,0.02332011]
[1644723971631,0.00994245,2927.3,2927.1,0.02332011]
[1644723972632,0.09848984,2927.7,2927.1,0.02332011]
[1644723972934,0.00994245,2927.3,2927.1,0.02332011]
[1644723973832,0.1708,2927.6,2927.1,0.02332011]
[1644723974031,0.00972402,2927.3,2927.1,0.02332011]
[1644723974685,0.00972402,2927.3,2927.1,3.42332011]
[1644723974888,0.1708,2927.6,2927.1,3.42332011]
[1644723975290,0.00972402,2927.3,2927.1,3.42332011]
[1644723976093,0.09848984,2927.7,2927.1,3.42332011]
[1644723978531,0.09848984,2927.7,2927.2,1.18323711]
[1644723978730,0.13819997,2927.8,2927.2,4.34729222]
[1644723978931,10.8465,2928.1,2927.2,1.18323711]
[1644723978932,0.1706,2928.0,2927.2,1.18323711]
[1644723979131,0.1706,2928.0,2927.2,1.78323711]
[1644723980029,0.00599186,2927.7,2927.2,1.78323711]
[1644723980232,0.00599186,2927.7,2927.2,1.80655632]
[1644723980632,0.00599186,2927.7,2927.2,4.96640007]
[1644723980836,11.0171,2928.1,2927.2,1.80655632]
[1644723981233,0.00992801,2927.6,2927.2,1.80655632]
[1644723982076,10.8465,2928.1,2927.2,1.80655632]
[1644723982276,10.8465,2928.1,2927.2,5.01267586]
[1644723982475,10.8465,2928.1,2927.2,1.80655632]
[1644723982476,0.00992808,2927.5,2927.2,1.80655632]
[1644723982876,0.00992808,2927.5,2927.2,4.96893661]
[1644723983483,6.9742,2928.1,2927.2,4.96893661]
[1644723983681,0.00992814,2927.5,2927.2,4.96893661]
[1644723983879,0.00992814,2927.5,2927.2,4.95204685]
[1644723984078,0.00992814,2927.5,2927.2,4.9405097]
[1644723984280,0.00992814,2927.5,2927.2,4.95063792]
[1644723984481,6.9742,2928.1,2927.2,4.95063792]
[1644723984680,1.4530253,2928.0,2927.2,4.95063792]
[1644723984883,0.00970708,2927.5,2927.2,4.95063792]
[1644723985081,0.00970708,2927.5,2927.2,4.96108447]
[1644723985280,0.00970708,2927.5,2927.2,4.998858]
[1644723985480,0.00970708,2927.5,2927.2,4.97553879]
[1644723985732,0.03673306,2927.6,2927.2,4.97553879]
[1644723985929,0.03673306,2927.6,2927.2,4.94560421]
[1644723986131,0.00970708,2927.5,2927.2,1.78323711]
[1644723986327,0.00970708,2927.5,2927.2,4.91605919]
[1644723986727,0.00970708,2927.5,2927.2,1.78323711]
[1644723986928,0.03673306,2927.6,2927.2,4.92240403]
[1644723987128,0.00970708,2927.5,2927.2,5.92240403]
[1644723987529,0.00970708,2927.5,2927.2,6.77620403]
[1644723988129,0.03673306,2927.6,2927.2,6.77620403]
[1644723988532,0.03673306,2927.6,2927.2,6.78482737]
[1644723988533,0.009722,2927.5,2927.2,6.78482737]
[1644723988738,0.009722,2927.5,2927.2,3.63703711]
[1644723988932,0.00847943,2927.5,2927.2,3.63703711]
[1644723989376,0.03673306,2927.6,2927.2,3.63703711]
[1644723989575,0.03673306,2927.6,2927.2,6.8339614]